bitfinex/quotes_ETHUSD_20250814
["timestamp","ask_amount","ask_price","bid_price","bid_amount"]
[1755158031286,0.4678,4745.8,4745.4,2.10729802]
[1755158031514,0.4678,4745.8,4745.3,0.08263134]
[1755158031712,0.48897391,4745.8,4745.3,0.08263134]
[1755158031915,3.24,4745.9,4745.3,0.08263134]
[1755158032216,3.24,4745.9,4745.4,2.10729569]
[1755158032616,3.24,4745.9,4745.3,2.18997661]
[1755158032940,0.48897391,4745.8,4745.3,0.08263134]
[1755158033218,0.4678,4745.7,4745.3,0.08263134]
[1755158034815,3.61078,4745.9,4745.3,0.08263134]
[1755158036324,0.4678,4745.8,4745.3,0.08263134]
[1755158036708,0.4678,4745.7,4745.3,0.08263134]
[1755158038027,3.24,4745.9,4745.4,0.4673]
[1755158038207,3.24,4745.9,4745.3,3.08263134]
[1755158038208,3.24,4745.9,4745.5,1.017]
[1755158038526,3.24,4745.9,4745.6,1.017]
[1755158038820,3.24,4745.9,4745.7,0.5497]
[1755158040094,3.24,4745.9,4745.3,6.20695266]
[1755158040313,3.24,4745.9,4745.4,3.0]
[1755158040625,4.0318,4745.9,4745.3,0.08263134]
[1755158042429,3.564,4745.9,4745.3,0.08263134]
[1755158042729,4.0318,4745.9,4745.3,0.08263134]
[1755158043099,3.564,4745.9,4745.3,0.08263134]
[1755158043302,3.24,4745.9,4745.3,5.18997876]
[1755158043701,3.24,4745.9,4745.3,5.65727876]
[1755158044137,3.24,4745.9,4745.3,0.08263134]
[1755158044631,3.24,4745.9,4745.5,2.10725009]
[1755158044811,3.24,4745.9,4745.6,1.017]
[1755158046046,3.24,4745.9,4745.6,0.4673]
[1755158046199,3.24,4745.9,4745.7,1.017]
[1755158046398,3.24,4745.9,4745.8,5.6568263]
[1755158046637,5.06,4746.7,4746.6,2.10677116]
[1755158046808,0.2495,4746.8,4746.7,2.10672677]
[1755158047132,3.4825,4746.8,4746.7,2.57402677]
[1755158047337,3.4825,4746.8,4746.7,1.017]
[1755158047507,3.9503,4746.8,4746.2,2.10694844]
[1755158048040,3.9503,4746.8,4746.1,3.0]
[1755158048533,3.4825,4746.8,4746.1,3.0]
[1755158048734,0.4678,4746.7,4746.1,3.0]
[1755158049503,3.233,4746.6,4746.3,2.10689547]
[1755158049738,3.233,4746.6,4746.5,2.10681554]
[1755158049938,3.233,4746.6,4746.5,3.12381554]
[1755158050627,3.233,4746.6,4746.5,1.017]
[1755158051331,3.233,4746.6,4746.5,3.12381554]
[1755158051543,3.233,4746.6,4746.5,6.65745482]
[1755158051715,3.233,4746.6,4746.5,6.76305482]
[1755158054038,3.232,4747.0,4746.8,2.10668239]
[1755158054406,3.232,4747.0,4746.8,6.22928239]
[1755158057543,3.232,4747.0,4746.8,5.76198239]
[1755158057910,3.232,4747.0,4746.8,7.11625064]
[1755158058113,0.002,4747.4,4746.8,7.27594686]
[1755158058412,0.002,4747.4,4747.1,2.10653464]
[1755158058622,0.002,4747.4,4747.3,2.21206051]
[1755158059141,0.002,4747.4,4747.3,6.22906051]
[1755158059439,0.002,4747.4,4747.3,7.53830098]
[1755158060712,0.002,4747.4,4747.3,10.76930098]
[1755158062250,0.4678,4749.1,4748.6,2.10586537]
[1755158062251,3.231,4748.8,4748.6,2.10586537]
[1755158062814,3.231,4748.8,4748.4,0.1056]
[1755158063016,0.458,4748.7,4748.4,0.1056]
[1755158063920,3.231,4748.8,4748.4,0.1056]
[1755158064342,3.689,4748.8,4748.4,0.1056]
[1755158064547,0.458,4748.7,4748.4,0.1056]
[1755158065223,3.231,4748.8,4748.4,0.1056]
[1755158065625,3.231,4748.8,4748.4,2.21156268]
[1755158065846,3.231,4748.8,4748.6,2.10584057]
[1755158066030,3.231,4748.8,4748.7,2.10583949]
[1755158066823,3.231,4748.8,4748.4,0.73734303]
[1755158067019,3.689,4748.8,4748.4,2.21154925]
[1755158067239,3.231,4748.8,4748.4,2.21154925]
[1755158067438,0.458,4748.7,4748.4,0.1056]
[1755158067827,0.458,4748.7,4748.4,2.21156873]
[1755158068050,3.231,4748.8,4748.5,2.10592744]
[1755158068430,3.231,4748.8,4748.4,0.1056]
[1755158068635,3.231,4748.8,4748.4,2.21156416]
[1755158068948,3.231,4748.8,4748.4,0.1056]
[1755158069463,3.231,4748.8,4748.4,2.21156616]
[1755158070251,3.689,4748.8,4748.4,0.1056]
[1755158070447,0.458,4748.7,4748.4,0.1056]
[1755158070749,3.231,4748.8,4748.4,0.1056]
[1755158071121,0.458,4748.7,4748.4,0.1056]
[1755158071958,3.231,4748.8,4748.4,2.21156286]
[1755158072823,3.231,4748.8,4748.4,0.1056]
[1755158073240,0.47917391,4748.7,4747.4,4.94924955]
[1755158073449,0.9373,4748.7,4747.9,2.10618957]
[1755158073651,0.458,4748.7,4747.6,0.19565661]
[1755158073851,0.458,4748.7,4748.1,2.10607166]
[1755158074142,0.458,4748.7,4748.0,2.1061485]
[1755158074529,0.458,4748.7,4748.1,2.10609115]
[1755158075853,0.9373,4748.7,4747.7,3.0]
[1755158076153,0.9373,4748.7,4747.9,2.10618316]
[1755158076375,0.4793,4748.7,4747.6,3.1056]
[1755158076538,0.458,4748.6,4748.0,2.10613873]
[1755158076735,0.41683,4748.6,4747.6,0.1056]
[1755158076968,0.458,4748.5,4747.6,0.1056]
[1755158077339,0.458,4748.5,4747.6,3.1056]
[1755158077636,0.458,4748.5,4747.6,0.1056]
[1755158077961,0.458,4748.5,4747.4,2.10639963]
[1755158078172,0.458,4748.5,4747.6,2.10628642]
[1755158078742,0.458,4748.5,4747.7,2.10627426]
[1755158079248,0.458,4748.5,4747.8,2.10623815]
[1755158079752,0.458,4748.5,4747.5,3.0]
[1755158079946,0.458,4748.5,4747.6,2.1063274]
[1755158080135,0.9271,4748.5,4747.6,2.1063274]
[1755158080339,0.9271,4748.5,4747.7,2.10626977]
[1755158080552,0.458,4748.5,4747.8,2.10623476]
[1755158080753,0.458,4748.5,4747.5,5.10635735]
[1755158081356,0.458,4748.5,4747.6,2.1063274]
[1755158081675,0.458,4748.5,4747.9,2.10617485]
[1755158082083,0.458,4748.5,4747.7,2.10627992]
[1755158082643,0.458,4748.5,4747.8,2.10623786]
[1755158083091,3.231,4748.8,4747.8,2.10623786]
[1755158083251,0.458,4748.4,4747.9,2.10618836]
[1755158083455,0.458,4748.3,4747.9,2.10618836]
[1755158083752,0.458,4748.6,4747.9,2.10618836]
[1755158083965,0.458,4748.6,4747.9,2.10615349]
[1755158084391,3.231,4748.8,4748.0,0.02106149]
[1755158084557,3.231,4748.8,4748.1,0.5724]
[1755158084981,3.231,4748.8,4748.1,2.67850387]
[1755158085199,3.231,4748.8,4748.2,2.10604609]
[1755158086280,3.231,4748.8,4748.1,2.67850364]
[1755158086455,3.231,4748.8,4748.1,0.5724]
[1755158087286,3.231,4748.8,4748.2,2.10605461]
[1755158087477,3.231,4748.8,4748.1,0.5724]
[1755158088263,3.231,4748.8,4748.0,3.61426294]
[1755158088463,3.231,4748.8,4748.1,2.10610462]
[1755158088885,3.231,4748.8,4748.1,2.67850462]
[1755158089696,3.231,4748.8,4748.0,2.10614935]
[1755158090761,3.231,4748.8,4748.1,2.10609649]
[1755158091096,3.231,4748.8,4748.1,0.5724]
[1755158091278,3.231,4748.8,4748.2,0.02106061]
[1755158091593,3.231,4748.8,4748.7,2.10583949]
[1755158091973,3.231,4748.8,4748.7,3.10313949]
[1755158092864,3.231,4748.8,4747.2,2.62627076]
[1755158092865,4.155,4748.8,4748.3,1.50814955]
[1755158093164,0.002,4749.3,4748.9,2.10574714]
[1755158093365,3.229,4749.2,4749.0,0.564]
[1755158093964,3.229,4749.2,4748.6,1.50814955]
[1755158094193,4.007,4749.2,4748.5,2.10592725]
[1755158094501,3.6839,4749.2,4748.5,1.50814955]
[1755158094987,3.6839,4749.2,4748.5,3.61407203]
[1755158095789,3.229,4749.2,4748.5,3.61407203]
[1755158095970,3.229,4749.2,4748.6,2.10587246]
[1755158096174,3.229,4749.1,4748.8,2.10578476]
[1755158096503,0.002,4749.3,4748.9,0.9973]
[1755158096702,3.229,4749.2,4749.0,0.564]
[1755158097404,3.229,4749.2,4748.6,2.10583975]
[1755158097579,3.18495985,4749.2,4748.8,2.10577457]
[1755158097777,3.18495985,4749.2,4748.9,3.10305028]
[1755158097998,3.18495985,4749.2,4749.0,2.66970345]
[1755158098364,3.18495985,4749.2,4749.0,2.66968776]
[1755158098690,3.18495985,4749.2,4749.0,3.10298776]
[1755158099066,3.18495985,4749.2,4749.0,0.9973]
[1755158099266,3.18495985,4749.2,4749.0,0.564]
[1755158100505,3.18495985,4749.2,4748.7,0.4333]
[1755158100676,3.18495985,4749.2,4748.8,0.9973]
[1755158100880,3.18495985,4749.2,4748.8,0.4333]
[1755158101074,3.18495985,4749.2,4748.8,2.10579366]
[1755158101497,3.18495985,4749.2,4748.8,2.66979366]
[1755158101696,3.18495985,4749.2,4748.8,0.564]
[1755158102098,3.18495985,4749.2,4748.5,1.50814955]
[1755158102302,0.002,4749.3,4748.9,0.9973]
[1755158102650,0.002,4749.3,4748.6,3.17187379]
[1755158102651,0.002,4749.3,4749.2,6.61376733]
[1755158102775,0.002,4749.3,4749.2,6.10291778]
[1755158103104,0.002,4749.3,4749.2,6.20851778]
[1755158104900,0.002,4749.3,4749.2,7.70816535]
[1755158105068,0.002,4749.3,4749.2,5.21121778]
[1755158105502,0.002,4749.3,4749.2,7.14657496]
[1755158105820,0.002,4749.3,4749.2,8.64622253]
[1755158106501,0.002,4749.3,4749.2,7.14657496]
[1755158109005,0.002,4749.3,4749.2,6.71327496]
[1755158109172,0.002,4749.3,4749.2,7.14657496]
[1755158112478,0.002,4749.8,4749.7,2.10539613]
[1755158112677,0.4549,4751.8,4751.3,2.10468243]
[1755158113205,5.051,4752.0,4751.6,2.10451541]
[1755158113407,0.47607391,4751.9,4751.3,0.1056]
[1755158113990,0.4577,4751.8,4751.3,0.1056]
[1755158114187,0.4549,4751.7,4751.3,0.1056]
[1755158114506,0.4549,4751.7,4750.4,3.6613]
[1755158114507,5.051,4752.0,4751.0,0.1056]
[1755158114690,0.4549,4751.7,4751.0,0.1056]
[1755158115398,0.4549,4751.7,4751.0,2.21041908]
[1755158116306,0.4549,4751.7,4750.7,2.10493692]
[1755158116608,0.4549,4751.7,4750.1,0.564]
[1755158116609,0.4577,4751.6,4750.4,0.1056]
[1755158116794,0.4549,4751.5,4750.4,0.1056]
[1755158116997,3.6857,4751.4,4750.4,0.1056]
[1755158117196,0.4549,4751.3,4750.5,2.10504144]
[1755158117381,5.051,4752.0,4750.6,0.02104997]
[1755158117578,3.228,4751.9,4750.7,1.1029]
[1755158117801,3.228,4751.9,4750.9,2.10482014]
[1755158118411,3.228,4751.9,4751.3,2.10467288]
[1755158119206,3.228,4751.9,4751.1,2.10473601]
[1755158119394,3.228,4751.9,4751.2,2.10472504]
[1755158119595,3.228,4751.9,4751.1,2.10477242]
[1755158119803,3.228,4751.9,4751.0,0.1056]
[1755158120578,3.228,4751.9,4751.0,2.21037728]
[1755158121511,0.47817391,4751.8,4751.0,0.1056]
[1755158121713,3.227,4751.7,4751.3,2.10464626]
[1755158122010,3.227,4751.7,4751.4,0.5778]
[1755158122201,3.227,4751.7,4751.4,3.15144138]
[1755158122513,0.002,4751.9,4751.4,3.15144138]
[1755158122514,0.002,4751.9,4751.8,2.10446567]
[1755158122889,0.002,4751.9,4751.8,3.15126567]
[1755158123089,0.002,4751.9,4751.8,2.10446567]
[1755158123398,0.002,4751.9,4751.8,2.68226567]
[1755158123593,0.002,4751.9,4751.8,3.15126567]
[1755158123797,0.002,4751.9,4751.8,2.10446567]
[1755158124614,0.002,4751.9,4751.6,0.1056]
[1755158124989,0.459,4751.9,4751.4,0.1056]
[1755158125192,0.002,4751.9,4751.4,0.1056]
[1755158125388,0.457,4751.8,4751.4,0.1056]
[1755158125712,0.457,4751.7,4751.4,0.1056]
[1755158126097,0.457,4751.7,4751.4,2.21023315]
[1755158126393,0.457,4751.7,4751.4,0.1056]
[1755158126626,0.457,4751.7,4751.3,2.10468585]
[1755158127020,0.457,4751.7,4751.2,0.1056]
[1755158127222,0.457,4751.7,4751.2,2.21033056]
[1755158127425,0.002,4751.9,4751.0,3.0]
[1755158127426,0.457,4751.6,4751.0,2.10477651]
[1755158127923,0.457,4751.6,4751.1,2.10476698]
[1755158128125,0.002,4751.9,4751.1,2.10476698]
[1755158128427,0.457,4751.6,4751.1,2.10476698]
[1755158129023,0.457,4751.6,4751.2,2.10471579]
[1755158129222,0.002,4751.9,4751.3,2.10467283]
[1755158130207,0.002,4751.9,4751.1,2.10477121]
[1755158130492,0.457,4751.8,4751.0,2.1047905]
[1755158130702,0.457,4751.8,4751.1,2.10476568]
[1755158130897,0.457,4751.8,4751.2,2.1047192]
[1755158131688,0.002,4751.9,4751.0,0.0210482]
[1755158131890,0.002,4751.9,4751.3,2.10466269]
[1755158132099,0.002,4751.9,4751.4,2.10464174]
[1755158132302,0.002,4751.9,4751.1,3.02104775]
[1755158132505,0.002,4751.9,4751.2,2.10469034]
[1755158132687,0.002,4751.9,4751.3,1.06784687]
[1755158132917,0.002,4751.9,4751.6,0.1056]
[1755158133119,0.002,4751.9,4751.8,2.10446567]
[1755158133293,0.002,4751.9,4751.8,3.15126567]
[1755158134318,0.002,4751.9,4751.8,2.68226567]
[1755158134490,0.002,4751.9,4751.8,3.68741045]
[1755158134696,0.002,4751.9,4751.8,6.68741045]
[1755158138031,0.002,4751.9,4751.8,5.64061045]
[1755158138187,0.002,4751.9,4751.8,5.10446567]
[1755158139321,0.002,4751.9,4751.6,0.083211]
[1755158139495,0.457,4751.8,4751.6,0.083211]
[1755158139699,0.002,4751.9,4751.6,0.083211]
[1755158140011,0.457,4751.7,4751.6,0.083211]
[1755158142590,0.002,4751.9,4751.6,0.083211]
[1755158142792,0.002,4751.9,4751.6,0.661011]
[1755158142995,0.002,4751.9,4751.6,2.76556463]
[1755158143212,0.002,4751.9,4751.7,2.12555264]
[1755158143422,0.002,4751.9,4751.8,3.25686567]
[1755158143605,0.002,4751.9,4751.8,6.25686567]
[1755158145515,0.002,4751.9,4751.8,7.7526596]
[1755158145895,0.002,4751.9,4751.8,6.25686567]
[1755158147107,0.002,4751.9,4751.8,7.75263082]
[1755158147306,0.002,4751.9,4751.8,9.09945067]
[1755158147515,0.002,4751.9,4751.8,8.05276618]
[1755158147830,0.002,4751.9,4751.8,6.55688552]
[1755158148526,0.002,4751.9,4751.8,5.21006567]
[1755158150528,0.002,4751.9,4751.8,3.1056]
[1755158150830,0.002,4751.9,4751.8,5.21006567]
[1755158151037,0.002,4751.9,4751.8,5.10446567]
[1755158151505,0.002,4751.9,4751.8,6.20126567]
[1755158151706,0.002,4751.9,4751.8,6.19855537]
[1755158152256,0.002,4751.9,4751.8,5.21006567]
[1755158153205,0.002,4751.9,4751.8,5.76666567]
[1755158153533,0.002,4751.9,4751.8,5.21006567]
[1755158156129,0.002,4751.9,4751.8,5.10446567]
[1755158159133,0.002,4751.9,4751.8,5.66106567]
[1755158160639,0.002,4751.9,4751.8,5.10446567]
[1755158162217,0.002,4751.9,4751.8,6.55043573]
[1755158162939,0.002,4751.9,4751.8,8.04631639]
[1755158163108,0.002,4751.9,4751.8,8.48091639]
[1755158164827,0.002,4751.9,4751.8,6.98503573]
[1755158165619,0.002,4751.9,4751.8,5.99383573]
[1755158165815,0.002,4751.9,4751.8,5.10446567]
[1755158166034,0.4382,4751.9,4751.8,5.10446567]
[1755158168238,0.002,4751.9,4751.8,5.10446567]
[1755158168952,0.002,4751.9,4751.8,2.10446567]
[1755158171672,0.002,4751.9,4751.8,3.09671703]
[1755158171866,0.002,4751.9,4751.8,4.07699114]
[1755158172253,0.002,4751.9,4751.8,4.07593978]
[1755158172456,0.002,4751.9,4751.8,3.08579114]
[1755158172666,0.002,4751.9,4751.8,2.10551703]
[1755158172965,0.002,4751.9,4751.8,2.10446567]
[1755158173473,0.4382,4751.9,4751.6,5.10454851]
[1755158173766,0.4362,4751.8,4751.6,3.0]
[1755158173983,0.4362,4751.7,4751.5,1.49588066]
[1755158174172,0.02117391,4751.8,4751.4,3.0]
[1755158174173,3.225,4751.6,4751.4,3.0]
[1755158174479,3.6612,4751.6,4751.4,3.0]
[1755158174774,0.4362,4751.5,4751.3,3.0]
[1755158175152,0.4362,4751.4,4751.3,3.0]
[1755158175357,0.4362,4751.4,4751.2,3.60061194]
[1755158175358,0.4362,4751.4,4751.2,3.0]
[1755158175657,0.4362,4751.3,4751.0,1.49588066]
[1755158175992,0.45737391,4751.2,4750.7,1.49588066]
[1755158176152,0.42657391,4751.5,4750.7,1.49588066]
[1755158176349,0.4362,4751.1,4750.6,3.60087645]
[1755158176686,0.36515739,4751.4,4750.9,2.10485615]
[1755158176980,0.4362,4751.3,4750.6,2.10495397]
[1755158177188,0.4362,4751.3,4750.5,1.49588066]
[1755158177490,0.4362,4751.3,4750.4,2.10507851]
[1755158177491,0.86277391,4751.3,4750.4,2.10507851]
[1755158177645,0.22566382,4751.2,4750.3,3.0]
[1755158177854,0.4362,4751.2,4750.6,2.10498317]
[1755158178051,0.4362,4751.2,4750.4,2.10508588]
[1755158178273,3.225,4751.6,4750.5,2.10502264]
[1755158178462,3.225,4751.6,4750.5,3.09622264]
[1755158178691,3.225,4751.6,4750.5,0.9912]
[1755158179001,0.36632,4751.5,4750.7,2.10494638]
[1755158179496,0.36632,4751.5,4750.8,2.10489942]
[1755158179656,0.36632,4751.5,4750.6,2.10496398]
[1755158179856,0.4362,4751.4,4750.6,2.10496398]
[1755158180481,0.4362,4751.4,4750.7,2.104945]
[1755158180879,0.4362,4751.4,4750.5,2.661625]
[1755158181068,0.36632,4751.5,4750.5,2.661625]
[1755158181289,3.225,4751.6,4750.6,2.10499726]
[1755158181525,3.225,4751.6,4750.9,2.10486262]
[1755158181678,0.48477391,4751.5,4750.5,2.66161438]
[1755158181868,0.48477391,4751.5,4750.5,2.10501438]
[1755158182371,0.48477391,4751.5,4750.3,0.1056]
[1755158182574,12.79389161,4751.3,4749.9,0.1056]
[1755158182794,0.89017391,4751.2,4749.8,2.10634389]
[1755158182999,0.89017391,4751.2,4749.8,0.001]
[1755158183314,0.869,4751.1,4749.8,0.001]
[1755158183518,0.869,4751.0,4749.8,0.001]
[1755158183714,3.59343739,4750.9,4749.8,0.001]
[1755158184012,0.8636,4750.8,4749.8,0.001]
[1755158184313,0.8636,4750.7,4749.8,0.001]
[1755158184514,0.4636,4750.6,4749.8,0.001]
[1755158187898,12.79389161,4750.4,4749.8,0.001]
[1755158188214,0.22238382,4750.3,4749.8,2.10633638]
[1755158188415,3.226,4750.2,4749.8,0.001]
[1755158188622,3.226,4750.2,4749.8,0.5166]
[1755158188992,3.226,4750.2,4749.8,0.001]
[1755158189192,3.226,4750.2,4749.9,2.62090646]
[1755158189519,3.226,4750.2,4749.9,0.5156]
[1755158189705,3.226,4750.2,4749.9,2.62090748]
[1755158190017,3.226,4750.2,4750.0,0.5156]
[1755158190395,3.226,4750.2,4750.1,2.54861883]
[1755158190595,3.226,4750.2,4750.1,0.959]
[1755158190805,3.226,4750.5,4750.4,2.10504365]
[1755158191120,3.226,4750.5,4750.4,0.5156]
[1755158191311,3.226,4750.5,4750.2,2.10513114]
[1755158191505,3.226,4750.5,4750.3,2.620729]
[1755158191686,3.226,4750.5,4750.4,2.62068588]
[1755158191892,3.226,4750.5,4750.4,3.06408588]
[1755158193300,3.226,4750.5,4750.4,0.959]
[1755158193498,3.226,4750.5,4750.2,2.10516477]
[1755158193794,3.226,4750.5,4750.3,2.10512067]
[1755158194104,3.226,4750.5,4750.2,2.10517145]
[1755158194306,3.226,4750.5,4750.3,2.10512845]
[1755158194495,3.226,4750.5,4750.2,2.10517266]
[1755158194896,3.226,4750.5,4750.3,0.959]
[1755158195111,3.226,4750.5,4750.4,2.62068588]
[1755158195508,3.226,4750.5,4750.4,3.06408588]
[1755158196196,3.226,4750.5,4750.4,0.5156]
[1755158196398,3.226,4750.5,4750.3,2.10512921]
[1755158196593,3.226,4750.5,4750.0,3.0]
[1755158196924,3.6896,4750.5,4750.1,2.10521387]
[1755158197308,3.226,4750.5,4750.2,2.10517179]
[1755158197823,3.226,4750.5,4750.0,2.10522991]
[1755158198923,3.6896,4750.5,4749.8,2.10630891]
[1755158199122,3.6896,4750.5,4749.8,0.001]
[1755158199309,3.6896,4750.5,4750.0,2.10525627]
[1755158199825,3.6896,4750.5,4749.8,0.001]
[1755158199826,3.59496,4750.5,4749.8,0.001]
[1755158200014,0.4636,4750.4,4749.8,0.001]
[1755158200343,3.226,4750.5,4749.8,3.06534744]
[1755158201321,3.226,4750.5,4750.0,2.10525915]
[1755158201717,3.226,4750.5,4750.1,0.5156]
[1755158202101,3.226,4750.5,4750.1,0.959]
[1755158202301,3.226,4750.5,4750.2,0.5156]
[1755158206236,3.226,4750.5,4749.8,2.1063078]
[1755158207015,3.226,4750.5,4749.9,2.105304]
[1755158208736,3.226,4750.5,4749.8,0.001]
[1755158209129,0.4636,4750.4,4749.8,0.001]
[1755158210537,0.4636,4750.4,4749.8,2.10633369]
[1755158211436,0.4636,4750.4,4749.8,0.001]
[1755158212409,0.4636,4750.4,4749.8,2.1063485]
[1755158212719,3.226,4750.5,4749.8,2.62865018]
[1755158212921,3.226,4750.5,4749.9,2.10529135]
[1755158213128,3.226,4750.5,4749.8,0.5233]
[1755158213845,0.4435,4750.4,4749.8,0.001]
[1755158216451,0.36695,4750.3,4749.8,0.001]
[1755158216636,3.226,4750.5,4749.8,0.001]
[1755158216840,3.6695,4750.5,4749.8,0.001]
[1755158217948,3.6695,4750.5,4749.8,2.10634438]
[1755158218340,3.6695,4750.5,4749.8,0.001]
[1755158220854,0.8239,4750.4,4749.8,0.001]
[1755158221047,0.4435,4750.3,4749.8,0.001]
[1755158221238,0.8239,4750.3,4749.8,0.001]
[1755158221566,0.4435,4750.2,4749.8,0.001]
[1755158222570,3.226,4750.5,4749.8,0.001]
[1755158222751,3.226,4750.5,4749.8,0.5233]
[1755158222957,0.36695,4750.4,4749.8,0.5233]
[1755158223353,0.4435,4750.3,4749.8,0.001]
[1755158223656,0.4435,4750.2,4749.8,0.001]
[1755158223873,0.4435,4750.1,4749.8,0.001]
[1755158224048,3.224,4750.0,4749.8,0.001]
[1755158224868,3.44787121,4750.0,4749.8,0.001]
[1755158225064,0.4435,4749.9,4749.8,0.001]
[1755158226267,3.44787121,4750.0,4749.8,0.001]
[1755158231163,3.89137121,4750.0,4749.8,0.001]
[1755158231359,4.24,4751.1,4749.8,0.001]
[1755158231360,4.24,4751.1,4749.9,0.9971]
[1755158231559,3.224,4750.9,4750.0,0.9971]
[1755158231760,3.224,4750.9,4750.1,0.9971]
[1755158232353,3.224,4750.9,4749.8,0.001]
[1755158232553,0.4435,4750.8,4749.8,0.4758]
[1755158232774,0.4435,4750.8,4749.9,0.5223]
[1755158234055,0.4435,4750.8,4749.9,2.62759222]
[1755158234283,0.4435,4750.8,4749.9,0.5223]
[1755158236203,3.224,4750.9,4749.8,0.4758]
[1755158236204,3.224,4750.9,4749.8,0.001]
[1755158236492,3.224,4750.9,4749.9,0.9971]
[1755158236795,0.36715,4750.8,4749.9,0.9971]
[1755158238490,0.4435,4750.7,4749.9,0.9971]
[1755158239274,0.4435,4750.7,4749.8,0.001]
[1755158240089,12.79389161,4750.0,4749.8,0.001]
[1755158240261,3.223,4749.9,4749.8,0.001]
[1755158240458,3.89017121,4749.9,4749.8,0.001]
[1755158241872,3.44667121,4749.9,4749.8,0.001]
[1755158242071,3.223,4749.9,4749.8,0.001]
[1755158243261,3.223,4749.9,4749.8,0.5355]
[1755158243869,3.223,4749.9,4749.8,0.001]
[1755158246992,3.6722,4749.9,4749.8,0.001]
[1755158249779,4.0348,4749.9,4749.8,0.001]
[1755158250471,3.6722,4749.9,4749.8,0.001]
[1755158250671,4.0348,4749.9,4749.8,0.001]
[1755158254212,4.119027,4749.9,4749.8,0.001]
[1755158254795,7.119027,4749.9,4749.8,0.001]
[1755158256192,6.756427,4749.9,4749.8,0.001]
[1755158256807,3.223,4749.9,4749.8,0.001]
[1755158257186,3.223,4749.9,4749.8,0.5355]
[1755158257507,3.223,4749.9,4749.8,0.001]
[1755158259487,3.223,4749.9,4749.8,0.9706]
[1755158260514,3.223,4749.9,4749.8,0.5355]
[1755158261925,3.223,4749.9,4749.8,0.9706]
[1755158262921,3.223,4749.9,4749.8,0.001]
[1755158264019,3.6722,4749.9,4749.8,0.001]
[1755158265490,3.223,4749.9,4749.8,0.001]
[1755158268213,3.6722,4749.9,4749.8,0.001]
[1755158269721,6.6722,4749.9,4749.8,0.001]
[1755158271408,7.0348,4749.9,4749.8,0.001]
[1755158271602,6.6722,4749.9,4749.8,0.001]
[1755158273711,6.756431,4749.9,4749.8,0.001]
[1755158274603,6.307231,4749.9,4749.8,0.001]
[1755158277730,6.760531,4749.9,4749.8,0.001]
[1755158278541,6.307231,4749.9,4749.8,0.001]
[1755158278835,6.305231,4749.9,4749.8,0.5014]
[1755158279036,6.305231,4749.9,4749.8,0.9444]
[1755158280139,6.221,4749.9,4749.8,0.9444]
[1755158281130,6.221,4749.9,4749.8,0.5014]
[1755158282339,6.221,4749.9,4749.8,0.001]
[1755158282845,6.221,4749.9,4749.8,0.5014]
[1755158283023,6.221,4749.9,4749.8,0.9444]
[1755158284238,6.221,4749.9,4749.8,0.5014]
[1755158287347,6.221,4749.9,4749.8,0.9444]
[1755158288724,6.221,4749.9,4749.8,0.5014]
[1755158289121,6.221,4749.9,4749.8,0.001]
[1755158289336,6.221,4749.9,4749.8,0.5014]
[1755158290229,6.221,4749.9,4749.8,0.9444]
[1755158290425,3.22,4749.9,4749.8,0.9444]
[1755158291541,3.22,4749.9,4749.8,0.001]
[1755158298251,3.7204,4749.9,4749.8,0.001]
[1755158299929,11.4137,4749.9,4749.8,0.001]
[1755158306948,11.7384,4749.9,4749.8,0.001]
[1755158307165,11.7384,4749.9,4749.4,0.001]
[1755158307166,3.0,4749.8,4749.4,0.001]
[1755158307467,15.79389161,4749.5,4749.4,0.001]
[1755158307663,19.01189161,4749.5,4749.4,0.001]
[1755158307968,19.44009161,4749.5,4749.1,0.001]
[1755158308152,19.01189161,4749.5,4749.1,0.001]
[1755158308463,0.837145,4749.4,4749.1,0.001]
[1755158308650,3.0,4749.2,4749.1,0.001]
[1755158309050,3.4282,4749.2,4749.1,0.001]
[1755158309670,2.214,4749.1,4747.2,0.5234]
[1755158309963,12.79389161,4748.7,4748.4,0.951]
[1755158310147,3.218,4748.6,4748.5,0.951]
[1755158310462,3.218,4748.6,4747.3,2.10645561]
[1755158310770,3.218,4748.6,4747.1,2.10750577]
[1755158310972,3.218,4748.6,4748.4,0.951]
[1755158311138,0.084244,4748.5,4747.1,0.001]
[1755158311337,3.218,4748.4,4747.1,0.001]
[1755158311839,3.218,4748.4,4748.3,0.952]
[1755158318070,8.271,4748.4,4748.3,0.952]
[1755158322508,8.271,4748.4,4748.3,0.5244]
[1755158322713,8.271,4748.4,4748.3,0.001]
[1755158323200,8.6992,4748.4,4748.3,0.001]
[1755158323681,8.783454,4748.4,4748.3,0.001]
[1755158324086,12.108154,4748.4,4748.3,0.001]
[1755158324691,11.783454,4748.4,4748.3,0.001]
[1755158326085,12.108154,4748.4,4748.3,0.001]
[1755158326604,11.783454,4748.4,4748.3,0.001]
[1755158327971,12.108154,4748.4,4748.3,0.001]
[1755158328793,3.0,4748.3,4747.3,0.001]
[1755158329108,19.43909161,4748.2,4747.3,0.001]